Cogmind - Beta 11 *** ADVENTURER MODE // 2022.03.22 @ 22:54:44 Player: HeikoO Result: Destroyed by X-72 Disruptor with Arc Projector Performance ------------- Evolutions (6) 3000 Regions Visited (14) 2800 Robots Destroyed (82) 410 Value Destroyed (3631) 3631 Prototype IDs (6) 120 Alien Tech Used (0) 0 Bonus (452) 452 TOTAL SCORE: 10413 Bonus ------- Pacifist 200 Follower Combat Kills 252 Cogmind --------- Core Integrity 0/1150 Matter 225/300 Energy 46/100 System Corruption 6% Temperature Cool (0) Movement Treading (160) Location -4/Factory Parts ------- > --- POWER (4) -------- (None) > --- PROPULSION (6) --- Heavy Treads Heavy Treads > --- UTILITY (6) ------ Advanced Thermal Generator Transmission Jammer > --- WEAPON (3) ------- (None) > --- INVENTORY (5) ---- Compact Matter Pod (0) Transmission Jammer Faulty Thunder Hammer Peak State ------------ > --- POWER ------------ Heavy Deuterium Engine Enhanced Nuclear Core Angular Momentum Engine Micro Fission Core > --- PROPULSION ------- VSS Leg VSS Leg VSS Leg VSS Leg VSS Leg Flexi-carbon Leg > --- UTILITY ---------- Improved Coolant Injector Medium Storage Unit Improved Sensor Array Cloaking Device Advanced Thermal Shield Point Defense System > --- WEAPON ----------- Cooled Plasma Cannon Heavy Machine Gun Heavy Machine Gun > --- INVENTORY -------- Angular Momentum Engine VSS Leg Improved Target Analyzer Quantum Capacitor High-powered Shock Rifle Tesla Rifle HERF Cannon Heavy Disruptor Cannon [Rating: 90] Favorites ----------- Power Enhanced Nuclear Core Engine Light Deuterium Engine Power Core Enhanced Nuclear Core Propulsion VSS Leg Treads Heavy Treads Leg VSS Leg Hover Unit Airjet Flight Unit VTOL Module Utility Medium Storage Unit Device Improved Heat Sink Storage Medium Storage Unit Processor Improved Target Analyzer Protection Improved Light Armor Plating Weapon Cooled Plasma Cannon Energy Gun Medium Laser Energy Cannon Cooled Plasma Cannon Ballistic Gun Enhanced Autogun Ballistic Cannon Advanced Assault Cannon Launcher Missile Launcher Impact Weapon Thunder Hammer Build | -11 -10 -10 -9 -9 -8 -7 -7 -6 -6 -6 -5 -5 -5 -4 ------- Run | Scr Mat Min Mat Min Mat Fac Sto Fac Low Low Fac Upp Upp Fac Slots Evolved 12 | . . . 2 . 2 2 . 2 . . 2 . . 2 Power 3 | . . . 1 . . . . 1 . . 1 . . . Propulsion 4 | . . . . . 2 . . . . . . . . 2 Utility 4 | . . . 1 . . 2 . . . . 1 . . . Weapon 1 | . . . . . . . . 1 . . . . . . Parts Attached 112 | 6 1 . 4 . 12 6 31 12 8 . 9 4 . 19 Power 23 | 1 . . 2 . 1 . 8 3 2 . 3 . . 3 Engine 13 | 1 . . 2 . 1 . 3 1 2 . 2 . . 1 Core 10 | . . . . . . . 5 2 . . 1 . . 2 Reactor . | . . . . . . . . . . . . . . . Propulsion 35 | 2 . . . . 5 . 9 5 4 . 1 1 . 8 Treads 2 | . . . . . . . . . . . . . . 2 Leg 26 | 2 . . . . . . 7 5 4 . 1 1 . 6 Wheel . | . . . . . . . . . . . . . . . Hover 4 | . . . . . 4 . . . . . . . . . Flight 3 | . . . . . 1 . 2 . . . . . . . Utility 30 | 1 1 . 1 . 4 2 8 2 2 . 4 1 . 4 Device 17 | . 1 . 1 . 1 2 3 1 2 . 2 1 . 3 Storage 5 | 1 . . . . 3 . . 1 . . . . . . Processor 1 | . . . . . . . . . . . . . . 1 Hackware . | . . . . . . . . . . . . . . . Protection 7 | . . . . . . . 5 . . . 2 . . . Artifact . | . . . . . . . . . . . . . . . Weapon 24 | 2 . . 1 . 2 4 6 2 . . 1 2 . 4 Energy Gun 6 | 1 . . 1 . . 1 1 . . . . . . 2 Energy Cannon 7 | . . . . . . . 4 1 . . . 1 . 1 Ballistic Gun 7 | 1 . . . . 2 . 1 1 . . 1 1 . . Ballistic Cannon 2 | . . . . . . 2 . . . . . . . . Launcher 1 | . . . . . . 1 . . . . . . . . Special Weapon . | . . . . . . . . . . . . . . . Impact Weapon 1 | . . . . . . . . . . . . . . 1 Slashing Weapon . | . . . . . . . . . . . . . . . Piercing Weapon . | . . . . . . . . . . . . . . . Special Melee Weapon . | . . . . . . . . . . . . . . . Unidentified Prototypes 6 | . . . . . 1 . 3 . 1 . . . . 1 Parts Lost 56 | . . . . . . 3 20 . 1 . . 5 . 27 Power 12 | . . . . . . . 5 . . . . 1 . 6 Propulsion 15 | . . . . . . 1 4 . . . . 2 . 8 Utility 16 | . . . . . . 2 6 . 1 . . . . 7 Weapon 13 | . . . . . . . 5 . . . . 2 . 6 Highest Loss Streak 19 | . . . . . . 2 6 . 1 . . 4 . 19 To Critical Strikes . | . . . . . . . . . . . . . . . Average Slot Usage (%) 85 | . 92 100 98 100 93 86 75 93 93 93 96 91 88 79 Engine 9 | . 14 14 22 22 15 15 4 5 6 13 16 12 11 6 Core 6 | . . . . . . . 8 13 12 6 5 5 5 7 Leg 14 | . 28 28 22 22 . . 7 26 26 26 23 18 17 23 Hover 4 | . . . . . 30 20 . . . . . . . . Flight 2 | . . . . . 3 7 7 . . . . . . . Device 16 | . 7 14 20 22 18 19 9 6 13 13 14 26 29 22 Storage 6 | . 14 14 11 11 9 7 7 6 6 6 5 5 5 4 Protection 6 | . . . . . . . 13 13 6 6 9 2 . . Energy Gun 1 | . 14 14 11 11 3 5 1 . . . . . . . Energy Cannon 5 | . . . . . . . 6 13 13 13 5 4 5 3 Ballistic Gun 7 | . 14 14 11 11 13 4 4 6 6 6 10 10 11 7 Naked Turns . | . . . . . . . . . . . . . . . Heaviest Build 78 | 13 14 14 19 19 28 34 50 63 62 62 78 75 66 73 Greatest Support 140 | 20 20 20 20 20 32 24 74 74 54 54 54 54 36 140 Greatest Overweight (x) 10 | . . . . . 1 1 10 1 1 1 1 1 1 10 Average Overweight (x) . | . . . . . . 1 3 . 1 1 1 1 1 . Largest Inventory Capacity 15 | 8 8 8 8 8 15 10 10 10 10 10 10 10 10 10 Average Capacity 9 | 6 8 8 8 8 9 10 10 10 10 10 10 10 10 9 Most Carried 10 | 3 3 2 8 8 10 10 10 10 10 9 10 10 8 10 Average Carried 7 | 1 2 2 6 8 8 9 8 9 9 9 9 8 8 4 Final Capacity 10 | 8 8 8 8 8 10 10 10 10 10 10 10 10 10 5 Final Carried 10 | 2 2 2 8 8 10 10 8 10 9 9 10 8 8 3 Class Distribution -------------------- 36% | Mutant 19% | Scavenger-Mutant 15% | Generator-Tank 12% | Generator-Skirmisher 10% | Scavenger-Tank 3% | Commander-Tank Dominant Class ---------------- Mutant | -10/Materials Mutant | -10/Mines Mutant | -9/Materials Mutant | -9/Mines Mutant | -8/Materials Mutant | -7/Factory Scavenger-Mutant | -7/Storage Commander-Tank | -6/Factory Scavenger-Tank | -6/Lower Caves Scavenger-Tank | -6/Lower Caves Generator-Tank | -5/Factory Generator-Skirmisher | -5/Upper Caves Generator-Skirmisher | -5/Upper Caves Generator-Tank | -4/Factory Resources | -11 -10 -10 -9 -9 -8 -7 -7 -6 -6 -6 -5 -5 -5 -4 ----------- Run | Scr Mat Min Mat Min Mat Fac Sto Fac Low Low Fac Upp Upp Fac Matter Collected 2158 | 241 . . 75 7 175 240 631 114 145 . . 393 . 137 Remotely . | . . . . . . . . . . . . . . . Salvage Created 3763 | . . . 143 60 105 273 1900 50 402 . . 624 . 206 Parts 159 | . . . 8 1 5 15 79 3 10 . . 27 . 11 Haulers Intercepted . | . . . . . . . . . . . . . . . Recyclers Shooed 2 | . . . . . . 1 1 . . . . . . . Parts Field Recycled . | . . . . . . . . . . . . . . . Retrieved Matter . | . . . . . . . . . . . . . . . Parts Self-Destructed 34 | . . . . . . . . . 8 . . 26 . . Prevented 2 | . . . . . . . . . . . . 2 . . Kills | -11 -10 -10 -9 -9 -8 -7 -7 -6 -6 -6 -5 -5 -5 -4 ------- Run | Scr Mat Min Mat Min Mat Fac Sto Fac Low Low Fac Upp Upp Fac Combat Hostiles Destroyed 75 | . . . 3 1 2 8 37 2 3 . . 16 . 3 Guns 29 | . . . 3 1 2 2 7 . . . . 13 . 1 Cannons 39 | . . . . . . 2 28 1 3 . . 3 . 2 AOE 4 | . . . . . . 4 . . . . . . . . Classes Destroyed 11 | . . . 2 . . 3 6 . . . . . . . Worker 1 | . . . . . . . 1 . . . . . . . Builder 1 | . . . . . . 1 . . . . . . . . Recycler 2 | . . . . . . 1 1 . . . . . . . Watcher 3 | . . . . . . . 2 . . . . . . 1 Swarmer 14 | . . . . . . . 4 2 . . . 8 . . Grunt 40 | . . . 1 1 2 7 20 . . . . 8 . 1 Brawler 3 | . . . . . . . 3 . . . . . . . Duelist 1 | . . . . . . . 1 . . . . . . . Sentry 7 | . . . 2 . . . 5 . . . . . . . Hunter 3 | . . . . . . . 1 . 2 . . . . . Programmer 7 | . . . . . . 1 3 . 1 . . . . 2 Best Kill Streak 9 | . . . 3 1 2 8 9 2 2 . . 6 . 2 Combat Bots Only 9 | . . . 3 1 2 4 9 2 2 . . 6 . 2 Max Kills in Single Turn 2 | . . . 1 1 1 1 2 1 1 . . 1 . 1 Gunslinging . | . . . . . . . . . . . . . . . Exploded 1 | . . . . . . 1 . . . . . . . . Melee . | . . . . . . . . . . . . . . . Uniques/NPCs Destroyed . | . . . . . . . . . . . . . . . Combat | -11 -10 -10 -9 -9 -8 -7 -7 -6 -6 -6 -5 -5 -5 -4 -------- Run | Scr Mat Min Mat Min Mat Fac Sto Fac Low Low Fac Upp Upp Fac Damage Taken 8833 | . . . 90 93 72 418 2778 229 465 299 . 1204 . 3185 Core 2045 | . . . 25 25 24 43 530 12 13 22 . 200 . 1151 Absorbed by Shields . | . . . . . . . . . . . . . . . Redirected to Shielding 104 | . . . . . . . 104 . . . . . . . Core Remaining (%) 82 | 100 . 100 . 87 95 . 18 . . 94 . . 80 . Volleys Fired 233 | . . . 7 6 11 30 102 3 15 1 . 36 . 22 Largest 3 | . . . 2 2 2 2 2 3 3 3 . 3 . 3 Hottest 125 | . . . 70 70 50 113 113 95 95 95 . 95 . 125 Shots Fired 507 | . . . 14 12 15 56 195 9 45 3 . 100 . 58 Gun 280 | . . . 14 12 15 28 77 3 15 1 . 71 . 44 Cannon 221 | . . . . . . 22 118 6 30 2 . 29 . 14 Launcher 6 | . . . . . . 6 . . . . . . . . Special . | . . . . . . . . . . . . . . . Kinetic 261 | . . . 7 6 15 24 81 3 15 1 . 71 . 38 Thermal 234 | . . . 7 6 . 26 114 6 30 2 . 29 . 14 Explosive 6 | . . . . . . 6 . . . . . . . . Electromagnetic 6 | . . . . . . . . . . . . . . 6 Robot Hit Streak 21 | . . . 11 10 13 16 21 3 9 8 . 19 . 12 Robot Miss Streak 3 | . . . . 1 1 2 3 1 2 1 . 3 . 2 Penetration Max . | . . . . . . . . . . . . . . . Secondary Targets 1 | . . . . . . . . . . . . 1 . . Max Gunslinging Chain 1 | . . . . . . . . . . . . 1 . . Shots Hit Robots 370 | . . . 11 10 12 44 142 4 28 2 . 75 . 42 Core Hits 152 | . . . 6 4 4 19 66 2 8 . . 31 . 12 Critical Kills 3 | . . . . . . . 2 1 . . . . . . Critical Parts Destroyed 2 | . . . . . . . 1 . . . . 1 . . Critical Strikes 7 | . . . . . . 2 3 1 . . . 1 . . Burn 2 | . . . . . . 2 . . . . . . . . Meltdown 3 | . . . . . . . 2 1 . . . . . . Destroy 2 | . . . . . . . 1 . . . . 1 . . Melee Attacks . | . . . . . . . . . . . . . . . Impact . | . . . . . . . . . . . . . . . Slashing . | . . . . . . . . . . . . . . . Piercing . | . . . . . . . . . . . . . . . Sneak Attacks . | . . . . . . . . . . . . . . . Combat Hostiles . | . . . . . . . . . . . . . . . Follow-up Attacks . | . . . . . . . . . . . . . . . Damage Inflicted 9942 | . . . 112 101 219 1223 4098 159 856 86 . 1820 . 1268 Guns 3672 | . . . 112 101 219 353 883 19 67 20 . 1149 . 749 Cannons 5734 | . . . . . . 420 3214 131 789 66 . 671 . 443 Explosions 526 | . . . . . . 450 . . . . . . . 76 Melee . | . . . . . . . . . . . . . . . Ramming 10 | . . . . . . . 1 9 . . . . . . Kinetic 3917 | . . . 39 39 219 449 1224 19 67 20 . 1149 . 692 Thermal 5432 | . . . 73 62 . 324 2873 131 789 66 . 671 . 443 Explosive 526 | . . . . . . 450 . . . . . . . 76 Electromagnetic 57 | . . . . . . . . . . . . . . 57 Impact . | . . . . . . . . . . . . . . . Slashing . | . . . . . . . . . . . . . . . Piercing . | . . . . . . . . . . . . . . . Highest Corruption 6 | . . . . . . . 5 . . . . . . 6 Average Corruption 1 | . . . . . . . 1 . . . . . . 1 Corruption Purged . | . . . . . . . . . . . . . . . Corruption Blocked . | . . . . . . . . . . . . . . . Effects 15 | . . . . . . . 13 . . . . . . 2 Message Errors 7 | . . . . . . . 6 . . . . . . 1 Matter Fused 2 | . . . . . . . 2 . . . . . . . Energy Discharges 2 | . . . . . . . 2 . . . . . . . Data Loss (minor) 4 | . . . . . . . 3 . . . . . . 1 Overload Shots . | . . . . . . . . . . . . . . . Overflow Damage 138 | . . . . . . . 51 6 76 . . 5 . . Projectiles 138 | . . . . . . . 51 6 76 . . 5 . . Explosions . | . . . . . . . . . . . . . . . Melee . | . . . . . . . . . . . . . . . Knockbacks 10 | . . . . . . 4 6 . . . . . . . Impact . | . . . . . . . . . . . . . . . Kinetic 9 | . . . . . . 4 5 . . . . . . . Secondary 1 | . . . . . . . 1 . . . . . . . Self-Inflicted Damage 69 | . . . . . . . . . . . . . . 69 Shots 1 | . . . . . . . . . . . . . . 1 Rammed 2 | . . . . . . . 2 . . . . . . . Targets Rammed 5 | . . . . . . . 2 3 . . . . . . Kicked 3 | . . . . . . . . 3 . . . . . . Crushed . | . . . . . . . . . . . . . . . Highest Temperature 229 | . . . 128 229 33 28 50 90 148 40 . 198 . 198 Average Temperature 53 | . . . 52 117 13 12 16 46 56 24 . 85 . 50 Received Heat Transfer 2731 | . . . 39 90 72 261 1359 87 . . . 375 . 448 Siege Activations . | . . . . . . . . . . . . . . . Robots Corrupted . | . . . . . . . . . . . . . . . Combat Hostiles . | . . . . . . . . . . . . . . . Parts Fried . | . . . . . . . . . . . . . . . Impact Corruptions . | . . . . . . . . . . . . . . . Robots Melted 3 | . . . . . . . 2 1 . . . . . . Combat Hostiles 3 | . . . . . . . 2 1 . . . . . . Parts Melted 17 | . . . . 3 . . 6 . 5 . . . . 3 Heat Transferred 8799 | . . . 222 185 . 925 4367 200 1150 100 . 1050 . 600 Parts Sabotaged . | . . . . . . . . . . . . . . . Parts Stolen . | . . . . . . . . . . . . . . . Parts Stripped . | . . . . . . . . . . . . . . . Power Chain Reactions . | . . . . . . . . . . . . . . . Missiles Intercepted . | . . . . . . . . . . . . . . . Alert | -11 -10 -10 -9 -9 -8 -7 -7 -6 -6 -6 -5 -5 -5 -4 ------- Run | Scr Mat Min Mat Min Mat Fac Sto Fac Low Low Fac Upp Upp Fac Peak Influence 375 | . 15 4 106 94 206 229 375 260 . . 1 . . 101 Initial 146 | . . 4 1 34 30 1 88 146 . . 1 . . 47 Average 93 | . 5 4 23 70 61 120 145 176 . . 1 . . 34 Maximum Alert Level 1 | . . . . . 1 1 1 1 . . . . . . Low Security (%) 89 | 100 100 100 100 100 96 87 78 82 . . 100 . . 100 Level 1 10 | . . . . . 3 12 21 17 . . . . . . Level 2 . | . . . . . . . . . . . . . . . Level 3 . | . . . . . . . . . . . . . . . Level 4 . | . . . . . . . . . . . . . . . Level 5 . | . . . . . . . . . . . . . . . High Security . | . . . . . . . . . . . . . . . Max Security . | . . . . . . . . . . . . . . . Squads Dispatched 24 | . . . 4 . . 3 11 1 . . . . . 5 Investigation 2 | . . . . . . . 2 . . . . . . . Extermination 6 | . . . . . . . 3 1 . . . . . 2 Reinforcement 11 | . . . 4 . . 1 4 . . . . . . 2 Assault 2 | . . . . . . . 2 . . . . . . . Garrison 3 | . . . . . . 2 . . . . . . . 1 Intercept . | . . . . . . . . . . . . . . . Searches Triggered . | . . . . . . . . . . . . . . . Construction Impeded . | . . . . . . . . . . . . . . . Haulers Reinforced 2 | . . . . . . . 2 . . . . . . . Active Scanning Responses . | . . . . . . . . . . . . . . . Cargo Convoy Interrupts . | . . . . . . . . . . . . . . . Stealth | -11 -10 -10 -9 -9 -8 -7 -7 -6 -6 -6 -5 -5 -5 -4 --------- Run | Scr Mat Min Mat Min Mat Fac Sto Fac Low Low Fac Upp Upp Fac Distress Signals 5 | . . . 2 . 1 . 1 . . . . . . 1 Communications Jammed . | . . . . . . . . . . . . . . . Distress Signals . | . . . . . . . . . . . . . . . Times Spotted 135 | . 1 . 4 2 9 10 54 10 3 4 1 18 . 19 Peak Tracking Total 8 | . 1 . 3 2 4 5 7 4 2 4 3 7 . 8 Tactical Retreats 12 | . . . . 1 4 . 1 1 . . . 1 . 4 Traps | -11 -10 -10 -9 -9 -8 -7 -7 -6 -6 -6 -5 -5 -5 -4 ------- Run | Scr Mat Min Mat Min Mat Fac Sto Fac Low Low Fac Upp Upp Fac Traps Triggered 5 | . . . . . 2 . 3 . . . . . . . Indirectly . | . . . . . . . . . . . . . . . Trap Hack Attempts . | . . . . . . . . . . . . . . . Triggered . | . . . . . . . . . . . . . . . Disarmed . | . . . . . . . . . . . . . . . Reprogrammed . | . . . . . . . . . . . . . . . Reused . | . . . . . . . . . . . . . . . Traps Extracted . | . . . . . . . . . . . . . . . Installed . | . . . . . . . . . . . . . . . Triggered 1 | . . . . . . . . . . . . 1 . . Machines | -11 -10 -10 -9 -9 -8 -7 -7 -6 -6 -6 -5 -5 -5 -4 ---------- Run | Scr Mat Min Mat Min Mat Fac Sto Fac Low Low Fac Upp Upp Fac Machines Disabled 3 | . . . . . . . . . . . . 1 . 2 Max in Single Turn 1 | . . . . . . . . . . . . 1 . 1 Machines Sabotaged . | . . . . . . . . . . . . . . . Garrisons Compromised . | . . . . . . . . . . . . . . . Overloaded Fab Kills . | . . . . . . . . . . . . . . . Hacking | -11 -10 -10 -9 -9 -8 -7 -7 -6 -6 -6 -5 -5 -5 -4 --------- Run | Scr Mat Min Mat Min Mat Fac Sto Fac Low Low Fac Upp Upp Fac Machines Accessed 3 | . . . . . . . 2 . . . 1 . . . Terminals 3 | . . . . . . . 2 . . . 1 . . . Fabricators . | . . . . . . . . . . . . . . . Repair Stations . | . . . . . . . . . . . . . . . Recycling Units . | . . . . . . . . . . . . . . . Scanalyzers . | . . . . . . . . . . . . . . . Garrison Access . | . . . . . . . . . . . . . . . Total Hacks 5 | . . . . . . . 4 . . . 1 . . . Successful 3 | . . . . . . . 2 . . . 1 . . . Failed 2 | . . . . . . . 2 . . . . . . . Catastrophic . | . . . . . . . . . . . . . . . Database Lockouts . | . . . . . . . . . . . . . . . Manual . | . . . . . . . . . . . . . . . Terminals 5 | . . . . . . . 4 . . . 1 . . . Fabricators . | . . . . . . . . . . . . . . . Repair Stations . | . . . . . . . . . . . . . . . Recycling Units . | . . . . . . . . . . . . . . . Scanalyzers . | . . . . . . . . . . . . . . . Garrison Access . | . . . . . . . . . . . . . . . Terminal Hacks 3 | . . . . . . . 2 . . . 1 . . . Record 1 | . . . . . . . . . . . 1 . . . Open Door 2 | . . . . . . . 2 . . . . . . . Fabricator Hacks . | . . . . . . . . . . . . . . . Repair Station Hacks . | . . . . . . . . . . . . . . . Recycling Unit Hacks . | . . . . . . . . . . . . . . . Scanalyzer . | . . . . . . . . . . . . . . . Garrison Access Hacks . | . . . . . . . . . . . . . . . Unauthorized Hacks . | . . . . . . . . . . . . . . . Terminals . | . . . . . . . . . . . . . . . Fabricators . | . . . . . . . . . . . . . . . Repair Stations . | . . . . . . . . . . . . . . . Recycling Units . | . . . . . . . . . . . . . . . Scanalyzers . | . . . . . . . . . . . . . . . Garrison Access . | . . . . . . . . . . . . . . . Data Cores Recovered . | . . . . . . . . . . . . . . . Used . | . . . . . . . . . . . . . . . Hacking Detections 1 | . . . . . . . 1 . . . . . . . Full Trace Events 1 | . . . . . . . 1 . . . . . . . Feedback Events . | . . . . . . . . . . . . . . . Feedback Blocked . | . . . . . . . . . . . . . . . Robot Schematics Acquired . | . . . . . . . . . . . . . . . Robots Built . | . . . . . . . . . . . . . . . Authchips . | . . . . . . . . . . . . . . . Time . | . . . . . . . . . . . . . . . Total Robot Build Rating . | . . . . . . . . . . . . . . . Part Schematics Acquired . | . . . . . . . . . . . . . . . Parts Built . | . . . . . . . . . . . . . . . Authchips . | . . . . . . . . . . . . . . . Time . | . . . . . . . . . . . . . . . Total Part Build Rating . | . . . . . . . . . . . . . . . Parts Repaired . | . . . . . . . . . . . . . . . Time . | . . . . . . . . . . . . . . . Parts Recycled . | . . . . . . . . . . . . . . . Recycled Matter . | . . . . . . . . . . . . . . . Retrieved Matter . | . . . . . . . . . . . . . . . Retrieved Components . | . . . . . . . . . . . . . . . Parts Scanalyzed . | . . . . . . . . . . . . . . . Part Schematics Acquired . | . . . . . . . . . . . . . . . Parts Damaged . | . . . . . . . . . . . . . . . Bothacking | -11 -10 -10 -9 -9 -8 -7 -7 -6 -6 -6 -5 -5 -5 -4 ------------ Run | Scr Mat Min Mat Min Mat Fac Sto Fac Low Low Fac Upp Upp Fac Used RIF Installer . | . . . . . . . . . . . . . . . Robots Hacked . | . . . . . . . . . . . . . . . Non-combat . | . . . . . . . . . . . . . . . Combat . | . . . . . . . . . . . . . . . Robot Hacks Applied . | . . . . . . . . . . . . . . . Relay Couplers Released . | . . . . . . . . . . . . . . . Fabnet Peak Effective % . | . . . . . . . . . . . . . . . Robots Rewired . | . . . . . . . . . . . . . . . Allies Hacked . | . . . . . . . . . . . . . . . Hacks Repelled . | . . . . . . . . . . . . . . . Allies | -11 -10 -10 -9 -9 -8 -7 -7 -6 -6 -6 -5 -5 -5 -4 -------- Run | Scr Mat Min Mat Min Mat Fac Sto Fac Low Low Fac Upp Upp Fac Total Allies 11 | . . . . . . . 11 . . . . . . . Largest Group 9 | . . . . . . . 9 8 2 . . . . . Highest-Rated Group 157 | . . . . . . . 157 141 45 . . . . . Highest-Rated Ally 31 | . . . . . . . 31 29 29 . . . . . Total Orders . | . . . . . . . . . . . . . . . Ally Attacks 57 | . . . . . . . 26 28 3 . . . . . Total Damage 787 | . . . . . . . 376 384 27 . . . . . Kills 8 | . . . . . . . 3 5 . . . . . . Allies Corrupted . | . . . . . . . . . . . . . . . Allies Melted . | . . . . . . . . . . . . . . . Intel | -11 -10 -10 -9 -9 -8 -7 -7 -6 -6 -6 -5 -5 -5 -4 ------- Run | Scr Mat Min Mat Min Mat Fac Sto Fac Low Low Fac Upp Upp Fac Robot Analysis Total . | . . . . . . . . . . . . . . . Derelict Logs Recovered 1 | . . . . . . . . . . . . 1 . . Drone Launches . | . . . . . . . . . . . . . . . Drone Recoveries . | . . . . . . . . . . . . . . . Exploration | -11 -10 -10 -9 -9 -8 -7 -7 -6 -6 -6 -5 -5 -5 -4 ------------- Run | Scr Mat Min Mat Min Mat Fac Sto Fac Low Low Fac Upp Upp Fac Turns Passed 6325 | 77 20 64 205 69 671 285 1929 265 683 24 300 782 58 893 Spaces Moved 2987 | 56 16 54 131 25 489 156 430 100 298 10 152 355 33 682 Core 97 | 5 . . . . . . 52 . . . . . . 40 Treads 48 | . . . . . . . . . . . . . . 48 Legs 2020 | 51 16 54 131 25 . . 201 100 298 10 152 355 33 594 Wheels . | . . . . . . . . . . . . . . . Hover 680 | . . . . . 489 156 35 . . . . . . . Flight 142 | . . . . . . . 142 . . . . . . . Fastest Speed 48 | 50 120 120 120 120 48 112 116 107 180 185 185 180 180 50 Average Speed 153 | 113 120 120 120 120 76 113 304 158 184 185 185 180 180 99 Slowest Speed 550 | 120 120 120 120 120 112 116 550 180 185 185 185 185 180 550 Overloaded Moves . | . . . . . . . . . . . . . . . Propulsion Burnouts . | . . . . . . . . . . . . . . . Robots Hopped . | . . . . . . . . . . . . . . . Cave-ins Triggered . | . . . . . . . . . . . . . . . Exploration Rate (%) 16 | 4 8 19 16 7 23 7 50 3 45 3 3 39 8 17 Regions Visited 14 Branch Regions 7 Pre-discovered Areas 1 | . . . . . . . . . . . . 1 . . Known Exits Taken . | . . . . . . . . . . . . . . . Unknown Exits Taken 14 | 1 1 1 1 1 1 1 1 1 1 1 1 1 1 . Scrap Searched 2 | . . . . . . . . . 1 . . 1 . . Spaces Dug . | . . . . . . . . . . . . . . . Terrain Destroyed 95 | . . . . . . 57 10 . 6 . . 6 . 16 Melee . | . . . . . . . . . . . . . . . Projectile 25 | . . . . . . 3 10 . 6 . . 6 . . AOE 70 | . . . . . . 54 . . . . . . . 16 Terrain Rammed . | . . . . . . . . . . . . . . . Walls Destroyed . | . . . . . . . . . . . . . . . Machines Disabled . | . . . . . . . . . . . . . . . Actions | -11 -10 -10 -9 -9 -8 -7 -7 -6 -6 -6 -5 -5 -5 -4 --------- Run | Scr Mat Min Mat Min Mat Fac Sto Fac Low Low Fac Upp Upp Fac Total 4333 | 69 17 53 169 53 782 208 872 201 407 14 170 430 32 856 Wait 829 | . . . 4 23 244 9 265 60 74 4 . 31 . 115 Move 2973 | 55 15 53 130 24 488 155 429 99 297 9 151 354 32 682 Hop . | . . . . . . . . . . . . . . . Pick Up 115 | 8 1 . 16 . 17 4 30 13 4 . 5 3 . 14 Fast Attach 12 | . . . . . . 1 3 1 2 . 4 . . 1 Attach 79 | 6 1 . 3 . 12 1 25 5 3 . 2 4 . 17 Detach 1 | . . . . . . . . 1 . . . . . . Swap 21 | . . . 1 . . 4 3 6 3 . 3 . . 1 Drop 65 | . . . 8 . 10 4 13 10 9 . 5 2 . 4 Fire 233 | . . . 7 6 11 30 102 3 15 1 . 36 . 22 Melee . | . . . . . . . . . . . . . . . Ram 2 | . . . . . . . 2 . . . . . . . Kick 3 | . . . . . . . . 3 . . . . . . Crush . | . . . . . . . . . . . . . . . Escape Stasis . | . . . . . . . . . . . . . . . Rewire . | . . . . . . . . . . . . . . . Trap . | . . . . . . . . . . . . . . . Miscellaneous . | . . . . . . . . . . . . . . . Route ------- -11/Scrapyard -10/Materials -10/Mines -9/Materials -9/Mines -8/Materials -7/Factory -7/Storage -6/Factory -6/Lower Caves -6/Lower Caves -5/Factory -5/Upper Caves -5/Upper Caves -4/Factory History --------- Turn | Location | Event 4 | -11/Scrapyard | Discovered new exit (range 16) 78 | -11/Scrapyard | Entered Materials 78 | -10/Materials | Discovered new exit (range 8) 98 | -10/Materials | Entered Mines 145 | -10/Mines | Discovered new exit (range 12) 162 | -10/Mines | Entered Materials 162 | -9/Materials | Evolved 2 slots: Power x1, Utility x1 318 | -9/Materials | Build established: Mutant 348 | -9/Materials | Discovered new exit (range 14) 367 | -9/Materials | Entered Mines 424 | -9/Mines | Discovered new exit (range 9) 436 | -9/Mines | Entered Materials 436 | -8/Materials | Evolved 2 slots: Propulsion x2 1091 | -8/Materials | Discovered new exit (range 13) 1107 | -8/Materials | Entered Factory 1107 | -7/Factory | Evolved 2 slots: Utility x2 1207 | -7/Factory | Garrison activated, responded to threat 1342 | -7/Factory | Discovered new exit (range 14) 1392 | -7/Factory | Entered Storage 1504 | -7/Storage | Lost 3 parts (2p1n) 1859 | -7/Storage | Lost 6 parts (2p2u2w) 1906 | -7/Storage | Core integrity fell below 50% 2179 | -7/Storage | Build established: Scavenger-Mutant 2985 | -7/Storage | Met a pair of Derelict thieves 3114 | -7/Storage | Destroyed 9 combat bots 3121 | -7/Storage | Lost 6 parts (1p4u1w) 3154 | -7/Storage | Core integrity fell below 20% 3242 | -7/Storage | Discovered new exit (range 15) 3251 | -7/Storage | Assisted by bots powering up and referring to "LRC-V3" 3321 | -7/Storage | Entered Factory 3321 | -6/Factory | Accompanied by 8 allies 3321 | -6/Factory | Evolved 2 slots: Power x1, Weapon x1 3521 | -6/Factory | Discovered new exit (range 13) 3586 | -6/Factory | Entered Lower Caves 3586 | -6/Lower Caves | Accompanied by 2 allies 4006 | -6/Lower Caves | Build established: Scavenger-Tank 4210 | -6/Lower Caves | Discovered new exit (range 13) 4269 | -6/Lower Caves | Entered another Lower Caves area 4269 | -6/Lower Caves | Discovered new exit (range 7) 4293 | -6/Lower Caves | Entered Factory 4293 | -5/Factory | Evolved 2 slots: Power x1, Utility x1 4554 | -5/Factory | Discovered new exit (range 13) 4593 | -5/Factory | Entered Upper Caves 4599 | -5/Upper Caves | Build established: Generator-Tank 4805 | -5/Upper Caves | Attracted the attention of an 0b10 base 4881 | -5/Upper Caves | Lost 4 parts (1p1n2w) 5253 | -5/Upper Caves | Build established: Generator-Skirmisher 5369 | -5/Upper Caves | Discovered new exit (range 4) 5375 | -5/Upper Caves | Entered another Upper Caves area 5404 | -5/Upper Caves | Discovered new exit (range 15) 5433 | -5/Upper Caves | Entered Factory 5433 | -4/Factory | Evolved 2 slots: Propulsion x2 5831 | -4/Factory | Found Quantum Capacitor 5894 | -4/Factory | Spotted B-86 Titan 6029 | -4/Factory | Garrison activated, responded to threat 6031 | -4/Factory | Build established: Generator-Tank 6094 | -4/Factory | Lost 4 parts (1p2n1w) 6179 | -4/Factory | Core integrity fell below 50% 6207 | -4/Factory | Core integrity fell below 20% 6236 | -4/Factory | Lost 19 parts (3p5n6u5w) 6326 | -4/Factory | Destroyed by X-72 Disruptor with Arc Projector Last Messages --------------- 06184_ Adv. Thermal Shield destroyed. 06192_ W-44 Eye distress signal alerts nearby ally. 06197_ H-71 Marshal misfires. 06201_ K-01 Serf cleans the Power Conduit. 06201_ Pressure Siphon disabled. 06204_ K-01 Serf cleans the Power Conduit. 06205_ Med. Storage Unit destroyed. 06207_ Penetrated by Slug. 06209_ System corrupted: Component data lost. 06209_ Critical hit (Burn: +50). 06223_ Acquired Hvy. Treads. 06226_ Acquired Adv. Thermal Generator. 06239_ Door malfunctions. 06290_ Acquired Transmission Jammer. 06296_ /M| NSWESR&6RVSR>UHID/ZLACEG>PO 06298_ Acquired Com. Matter Pod. 06301_ X-72 Disruptor IFF system glitched. 06304_ Imp. Coolant Injector destroyed. 06308_ ALERT: Rogue bot located, Programmers report to Factory Zone 6X. 06316_ X-72 Disruptor misfires. Map ----- +----------------------------------------------------+ | ?????????????????????????????????????? | | ????????????????????# ???????????????? | | ????????????????????# ???????????????? | | ????????????????????# ???????????????? | | ????????????????????# ???????????????? | | ????????????????????# ???????????????? | | ????????????????????# ???????????????? | | ????????????????????# ################ | | ????????????????????# | | ????????????????????# | | ????????????????????# """""" """ | | ??????????????? ????# """""" """ | | ??????????????? ????# """""" """ | | ??????????????? ????# """""" | | ??????????????? ????# | | ??????????????? ????# """""" """ | | ??????????????# #???# """""" """ | | ?????????????? ???# """""" """ | | ?????????????? T ???# """""" """ | | ?????????????? ???# | | ?????########## #???# | | ?????# # #???# ###? | | ?????# # ##### #??? | | ?????# ! ! + ^ #??? | | ?????# ! xx# ###########/#####+###? | | ?????# !!! @# #?# # | | ?????# # #?# # | | ?????# # #?# """ """ """ """ # | | ?????# # ### """ """ """ """?? | | ?????# # / """ """ """ """?? | | ?????############## ??? | | ??????????????????# ? ??? | | ??????????????????# ???? | | ??????????????????###############????? | | | | | | | | | | | | | | | | | | | | | | | | | | | | | | | | | +----------------------------------------------------+ Best States ------------- Heat Dissipation 70 Coolant Potential 80 Energy Generation 57 Energy Capacity 775 Matter Stores 300 Matter Capacity 300 Sight Range 16 Robot Scan Range 16 Terrain Scan Range 16 Terrain Scan Density 10 ECM Strength 1 Cloak Strength 2 Armor Coverage 450 Resistance: KI 20 Resistance: TH 50 Resistance: EX 20 Resistance: EM 20 Resistance: I 20 Resistance: S 20 Resistance: P 20 Propulsion Shielding 66 Point Defense Rating 80 Evasion (%) 57 Target Analysis 6 Recoil Reduction 4 Offensive Hacking 10 Item Schematics ----------------- None Robot Schematics ------------------ None Fabricated ------------ Nothing Alien Tech Used ----------------- None Achievements -------------- None Challenges ------------ None Game ------ Seed WeaponCombatArray Manual? 0 Play Time 01:30:03 Cumulative 19.5 hours Start 2022.03.20 @ 22:05:41 End 2022.03.22 @ 22:54:44 Sessions 9 Manual Loads 0 Difficulty Adventurer Special Mode None Game No. 20 Rogue 14 Adventurer 6 Explorer 0 Win Type - Total 0 Types 0/0/0/0/0/0/0/0/0 Lore% 4 Gallery% 24 Achievement% 14 Wizard Run 0 Options --------- ASCII 0 Keyboard 0 Movement Mouse Keybinds 0 Fullscreen 1 Font 18/Terminus Map View 76x50 Tactical HUD 1 Map Filters NONE Filters NONE Steam 1 RUN: 5dd07235-b315-4a35-95e6-c70abcf0c29e